Workbook

Sheet คำแนะนำ
B2: กระแสเงินสดส่วนบุคคล
B3: เวิร์กบุ๊กนี้มีเวิร์กชีตกระแสเงินสดรายปี รายเดือน และรายวัน เลือกชนิดกระแสเงินสดที่เหมาะสมกับคุณหรือใช้ทุกชนิดเพื่อช่วยให้ได้รับข้อมูลเชิงลึกเกี่ยวกับกระแสเงินสดส่วนบุคคลของคุณ
B5: กระแสเงินสดรายวัน | E5: กระแสเงินสดรายเดือน | H5: กระแสเงินสดรายปี
B7: ใส่จำนวนกระแสเงินสดที่คุณพบในแต่ละวันและตรวจสอบผลรวมรายเดือนและรายปีโดยประมาณ ใช้เวิร์กชีตนี้เพื่อดูพฤติกรรมการใช้จ่ายรายวันในช่วงหนึ่งเดือนหรือหนึ่งปีของคุณ | E7: ใส่กระแสเงินสดรายเดือนที่คุณพบในแต่ละเดือนหรือประมาณของเดือนที่เหลืออยู่เพื่อดูกระแสเงินสดที่คาดการณ์ของแต่ละเดือน | H7: ใส่จํานวนกระแสเงินสดรายปีในสี่เวิร์กชีต: รายได้ ค่าใช้จ่าย รายจ่ายตามดุลยพินิจ และการออม ดูการแบ่งรายเดือนและการเปรียบเทียบทุกสิ่งทุกอย่าง และที่สำคัญที่สุดคือข้อมูลสรุปทั้งแบบรายปีและรายเดือน

Sheet กระแสเงินสดรายวัน
B1: กระแสเงินสดส่วนบุคคล | I1: รายรับ!A1
C2: ผลรวมเงินสดที่ใช้ได้: | D2: =DailyCashFlow -> ฿441.78 | F2: หมายเหตุ: ถ้าคุณต้องการเพิ่มรายการประจำวันลงในตาราง ให้ประมาณจำนวน/มูลค่ารายเดือนและป้อนค่าในคอลัมน์เดือนที่เหมาะสม
B4: สรุปรายวัน
B5: ยอดรวม | C5: รายวัน | D5: รายเดือน | E5: รายปี
B6: รายรับ | C6: =SUMIF(รายวัน[ชนิด],$B6,รายวัน[รายวัน]) -> ฿342.47 | D6: =SUMIF(รายวัน[ชนิด],$B6,รายวัน[รายเดือน]) -> ฿10,416.80 | E6: =SUMIF(รายวัน[ชนิด],$B6,รายวัน[รายปี]) -> ฿125,001.55
B7: รายจ่าย | C7: =SUMIF(รายวัน[ชนิด],$B7,รายวัน[รายวัน]) -> ฿0.00 | D7: =SUMIF(รายวัน[ชนิด],$B7,รายวัน[รายเดือน]) -> ฿0.00 | E7: =SUMIF(รายวัน[ชนิด],$B7,รายวัน[รายปี]) -> ฿0.00
B8: รายจ่ายตามดุลยพินิจ | C8: =SUMIF(รายวัน[ชนิด],$B8,รายวัน[รายวัน]) -> ฿36.29 | D8: =SUMIF(รายวัน[ชนิด],$B8,รายวัน[รายเดือน]) -> ฿1,103.82 | E8: =SUMIF(รายวัน[ชนิด],$B8,รายวัน[รายปี]) -> ฿13,245.85
B9: เงินออม | C9: =SUMIF(รายวัน[ชนิด],$B9,รายวัน[รายวัน]) -> ฿63.02 | D9: =SUMIF(รายวัน[ชนิด],$B9,รายวัน[รายเดือน]) -> ฿1,916.86 | E9: =SUMIF(รายวัน[ชนิด],$B9,รายวัน[รายปี]) -> ฿23,002.30
B11: ชนิด | C11: คำอธิบาย | D11: รายวัน | E11: รายเดือน | F11: รายปี
B12: รายรับ | C12: เงินเดือน | D12: ฿246.58 | E12: =รายวัน[[#This Row],[รายปี]]/12 -> ฿7,500.14 | F12: =รายวัน[[#This Row],[รายวัน]]*365 -> ฿90,001.70
B13: รายรับ | C13: ค่าคอมมิชชัน/โบนัส | D13: ฿13.70 | E13: =รายวัน[[#This Row],[รายปี]]/12 -> ฿416.71 | F13: =รายวัน[[#This Row],[รายวัน]]*365 -> ฿5,000.50
B14: รายรับ | C14: อื่นๆ 1 | D14: ฿82.19 | E14: =รายวัน[[#This Row],[รายปี]]/12 -> ฿2,499.95 | F14: =รายวัน[[#This Row],[รายวัน]]*365 -> ฿29,999.35
B15: รายรับ | C15: อื่นๆ 2 | D15: ฿0.00 | E15: =รายวัน[[#This Row],[รายปี]]/12 -> ฿0.00 | F15: =รายวัน[[#This Row],[รายวัน]]*365 -> ฿0.00
B16: รายรับ | C16: อื่นๆ 3 | D16: ฿0.00 | E16: =รายวัน[[#This Row],[รายปี]]/12 -> ฿0.00 | F16: =รายวัน[[#This Row],[รายวัน]]*365 -> ฿0.00
B17: รายรับ | C17: อื่นๆ 4 | D17: ฿0.00 | E17: =รายวัน[[#This Row],[รายปี]]/12 -> ฿0.00 | F17: =รายวัน[[#This Row],[รายวัน]]*365 -> ฿0.00
B18: ค่าใช้จ่าย | C18: สหพันธรัฐ/SS/ประกันสุขภาพ | D18: ฿41.10 | E18: =รายวัน[[#This Row],[รายปี]]/12 -> ฿1,250.13 | F18: =รายวัน[[#This Row],[รายวัน]]*365 -> ฿15,001.50
B19: ค่าใช้จ่าย | C19: ภาษีเงินได้ของรัฐ | D19: ฿6.85 | E19: =รายวัน[[#This Row],[รายปี]]/12 -> ฿208.35 | F19: =รายวัน[[#This Row],[รายวัน]]*365 -> ฿2,500.25
B20: ค่าใช้จ่าย | C20: ภาษีรถยนต์/ค่าธรรมเนียม | D20: ฿0.55 | E20: =รายวัน[[#This Row],[รายปี]]/12 -> ฿16.73 | F20: =รายวัน[[#This Row],[รายวัน]]*365 -> ฿200.75
B21: ค่าใช้จ่าย | C21: ชำระเงินค่ารถยนต์ | D21: ฿10.96 | E21: =รายวัน[[#This Row],[รายปี]]/12 -> ฿333.37 | F21: =รายวัน[[#This Row],[รายวัน]]*365 -> ฿4,000.40
B22: ค่าใช้จ่าย | C22: ค่าจำนอง/ค่าเช่า | D22: ฿41.10 | E22: =รายวัน[[#This Row],[รายปี]]/12 -> ฿1,250.13 | F22: =รายวัน[[#This Row],[รายวัน]]*365 -> ฿15,001.50
B23: ค่าใช้จ่าย | C23: ค่าประกัน | D23: ฿0.68 | E23: =รายวัน[[#This Row],[รายปี]]/12 -> ฿20.68 | F23: =รายวัน[[#This Row],[รายวัน]]*365 -> ฿248.20
B24: ค่าใช้จ่าย | C24: ค่าไฟฟ้า | D24: ฿3.29 | E24: =รายวัน[[#This Row],[รายปี]]/12 -> ฿100.07 | F24: =รายวัน[[#This Row],[รายวัน]]*365 -> ฿1,200.85
B25: ค่าใช้จ่าย | C25: ค่าแก๊ส | D25: ฿1.64 | E25: =รายวัน[[#This Row],[รายปี]]/12 -> ฿49.88 | F25: =รายวัน[[#This Row],[รายวัน]]*365 -> ฿598.60
B26: ค่าใช้จ่าย | C26: ค่าน้ำ | D26: ฿1.64 | E26: =รายวัน[[#This Row],[รายปี]]/12 -> ฿49.88 | F26: =รายวัน[[#This Row],[รายวัน]]*365 -> ฿598.60
B27: ค่าใช้จ่าย | C27: ค่าท่อระบายน้ำ | D27: ฿0.82 | E27: =รายวัน[[#This Row],[รายปี]]/12 -> ฿24.94 | F27: =รายวัน[[#This Row],[รายวัน]]*365 -> ฿299.30
B28: ค่าใช้จ่าย | C28: ค่าขยะ | D28: ฿0.41 | E28: =รายวัน[[#This Row],[รายปี]]/12 -> ฿12.47 | F28: =รายวัน[[#This Row],[รายวัน]]*365 -> ฿149.65
B29: ค่าใช้จ่าย | C29: ค่าโทรศัพท์ | D29: ฿1.64 | E29: =รายวัน[[#This Row],[รายปี]]/12 -> ฿49.88 | F29: =รายวัน[[#This Row],[รายวัน]]*365 -> ฿598.60
B30: ค่าใช้จ่าย | C30: อินเทอร์เน็ต | D30: ฿1.64 | E30: =รายวัน[[#This Row],[รายปี]]/12 -> ฿49.88 | F30: =รายวัน[[#This Row],[รายวัน]]*365 -> ฿598.60
B31: ค่าใช้จ่าย | C31: เงินช่วยเหลือผู้ทุพพลภาพ | D31: ฿4.11 | E31: =รายวัน[[#This Row],[รายปี]]/12 -> ฿125.01 | F31: =รายวัน[[#This Row],[รายวัน]]*365 -> ฿1,500.15
B32: ค่าใช้จ่าย | C32: อาหาร | D32: ฿13.70 | E32: =รายวัน[[#This Row],[รายปี]]/12 -> ฿416.71 | F32: =รายวัน[[#This Row],[รายวัน]]*365 -> ฿5,000.50
B33: ค่าใช้จ่าย | C33: ค่าเสื้อผ้า | D33: ฿3.29 | E33: =รายวัน[[#This Row],[รายปี]]/12 -> ฿100.07 | F33: =รายวัน[[#This Row],[รายวัน]]*365 -> ฿1,200.85
B34: ค่าใช้จ่าย | C34: ค่ารักษาพยาบาล/ค่าทำฟัน/Rx | D34: ฿1.64 | E34: =รายวัน[[#This Row],[รายปี]]/12 -> ฿49.88 | F34: =รายวัน[[#This Row],[รายวัน]]*365 -> ฿598.60
B35: ค่าใช้จ่าย | C35: ค่าโดยสารรถประจำทาง | D35: ฿1.00 | E35: =รายวัน[[#This Row],[รายปี]]/12 -> ฿30.42 | F35: =รายวัน[[#This Row],[รายวัน]]*365 -> ฿365.00
B36: ค่าใช้จ่าย | C36: อื่นๆ 2 | D36: ฿0.00 | E36: =รายวัน[[#This Row],[รายปี]]/12 -> ฿0.00 | F36: =รายวัน[[#This Row],[รายวัน]]*365 -> ฿0.00
B37: ค่าใช้จ่าย | C37: อื่นๆ 3 | D37: ฿0.00 | E37: =รายวัน[[#This Row],[รายปี]]/12 -> ฿0.00 | F37: =รายวัน[[#This Row],[รายวัน]]*365 -> ฿0.00
B38: ค่าใช้จ่าย | C38: อื่นๆ 4 | D38: ฿0.00 | E38: =รายวัน[[#This Row],[รายปี]]/12 -> ฿0.00 | F38: =รายวัน[[#This Row],[รายวัน]]*365 -> ฿0.00
B39: รายจ่ายตามดุลยพินิจ | C39: ค่าอาหาร | D39: ฿3.29 | E39: =รายวัน[[#This Row],[รายปี]]/12 -> ฿100.07 | F39: =รายวัน[[#This Row],[รายวัน]]*365 -> ฿1,200.85
B40: รายจ่ายตามดุลยพินิจ | C40: ของขวัญ | D40: ฿1.64 | E40: =รายวัน[[#This Row],[รายปี]]/12 -> ฿49.88 | F40: =รายวัน[[#This Row],[รายวัน]]*365 -> ฿598.60
B41: รายจ่ายตามดุลยพินิจ | C41: การท่องเที่ยว | D41: ฿6.16 | E41: =รายวัน[[#This Row],[รายปี]]/12 -> ฿187.37 | F41: =รายวัน[[#This Row],[รายวัน]]*365 -> ฿2,248.40
B42: รายจ่ายตามดุลยพินิจ | C42: ความบันเทิง | D42: ฿3.29 | E42: =รายวัน[[#This Row],[รายปี]]/12 -> ฿100.07 | F42: =รายวัน[[#This Row],[รายวัน]]*365 -> ฿1,200.85
B43: รายจ่ายตามดุลยพินิจ | C43: ค่าของใช้ส่วนตัว | D43: ฿0.82 | E43: =รายวัน[[#This Row],[รายปี]]/12 -> ฿24.94 | F43: =รายวัน[[#This Row],[รายวัน]]*365 -> ฿299.30
B44: รายจ่ายตามดุลยพินิจ | C44: ซื้อของ | D44: ฿5.48 | E44: =รายวัน[[#This Row],[รายปี]]/12 -> ฿166.68 | F44: =รายวัน[[#This Row],[รายวัน]]*365 -> ฿2,000.20
B45: รายจ่ายตามดุลยพินิจ | C45: การกุศล | D45: ฿1.64 | E45: =รายวัน[[#This Row],[รายปี]]/12 -> ฿49.88 | F45: =รายวัน[[#This Row],[รายวัน]]*365 -> ฿598.60
B46: รายจ่ายตามดุลยพินิจ | C46: ค่าสโมสร/ค่าสมาชิก | D46: ฿0.82 | E46: =รายวัน[[#This Row],[รายปี]]/12 -> ฿24.94 | F46: =รายวัน[[#This Row],[รายวัน]]*365 -> ฿299.30
B47: รายจ่ายตามดุลยพินิจ | C47: ค่าปรับปรุงบ้าน | D47: ฿13.15 | E47: =รายวัน[[#This Row],[รายปี]]/12 -> ฿399.98 | F47: =รายวัน[[#This Row],[รายวัน]]*365 -> ฿4,799.75
B48: รายจ่ายตามดุลยพินิจ | C48: อื่นๆ 1 | D48: ฿0.00 | E48: =รายวัน[[#This Row],[รายปี]]/12 -> ฿0.00 | F48: =รายวัน[[#This Row],[รายวัน]]*365 -> ฿0.00
B49: รายจ่ายตามดุลยพินิจ | C49: อื่นๆ 2 | D49: ฿0.00 | E49: =รายวัน[[#This Row],[รายปี]]/12 -> ฿0.00 | F49: =รายวัน[[#This Row],[รายวัน]]*365 -> ฿0.00
B50: เงินออม | C50: สำรองเงินสด | D50: ฿13.70 | E50: =รายวัน[[#This Row],[รายปี]]/12 -> ฿416.71 | F50: =รายวัน[[#This Row],[รายวัน]]*365 -> ฿5,000.50
B51: เงินออม | C51: 401(k)/อื่นๆ | D51: ฿32.88 | E51: =รายวัน[[#This Row],[รายปี]]/12 -> ฿1,000.10 | F51: =รายวัน[[#This Row],[รายวัน]]*365 -> ฿12,001.20
B52: เงินออม | C52: บัญชีออมทรัพย์ | D52: ฿16.44 | E52: =รายวัน[[#This Row],[รายปี]]/12 -> ฿500.05 | F52: =รายวัน[[#This Row],[รายวัน]]*365 -> ฿6,000.60
B53: เงินออม | C53: อื่นๆ 1 | D53: ฿0.00 | E53: =รายวัน[[#This Row],[รายปี]]/12 -> ฿0.00 | F53: =รายวัน[[#This Row],[รายวัน]]*365 -> ฿0.00
B54: เงินออม | C54: อื่นๆ 2 | D54: ฿0.00 | E54: =รายวัน[[#This Row],[รายปี]]/12 -> ฿0.00 | F54: =รายวัน[[#This Row],[รายวัน]]*365 -> ฿0.00
B55: ผลรวม | D55: =SUMIF(รายวัน[ชนิด],"รายรับ",รายวัน[รายวัน])-SUMIF(รายวัน[ชนิด],"<>รายรับ",รายวัน[รายวัน]) -> ฿107.10 | E55: =SUMIF(รายวัน[ชนิด],"รายรับ",รายวัน[รายเดือน])-SUMIF(รายวัน[ชนิด],"<>รายรับ",รายวัน[รายเดือน]) -> ฿3,257.63 | F55: =SUMIF(รายวัน[ชนิด],"รายรับ",รายวัน[รายปี])-SUMIF(รายวัน[ชนิด],"<>รายรับ",รายวัน[รายปี]) -> ฿39,091.50

Sheet กระแสเงินสดรายเดือน
B1: กระแสเงินสดส่วนบุคคล
C2: ผลรวมกระแสเงินสดรายเดือน: | D2: =MonthlyCashFlowToDate -> ฿18,380.00 | F2: หมายเหตุ: สำหรับรายการประจำวัน ให้ประมาณจำนวน/มูลค่ารายเดือนและป้อนค่านั้นในคอลัมน์เดือนที่เหมาะสม
B4: ประเภท | C4: คำอธิบาย | D4: ม.ค. | E4: ก.พ. | F4: มี.ค. | G4: เม.ย. | H4: พ.ค. | I4: มิ.ย. | J4: ก.ค. | K4: ส.ค. | L4: ก.ย. | M4: ต.ค. | N4: พ.ย. | O4: ธ.ค. | P4: ผลรวม
B5: รายรับ | C5: เงินเดือน | D5: ฿7,500.00 | E5: ฿7,500.00 | F5: ฿7,500.00 | G5: ฿7,500.00 | H5: ฿7,500.00 | I5: ฿7,500.00 | P5: =SUM(รายเดือน[[#This Row],[ม.ค.]:[ธ.ค.]]) -> ฿45,000.00
B6: รายรับ | C6: ค่าคอมมิชชัน/โบนัส | D6: ฿400.00 | E6: ฿400.00 | F6: ฿500.00 | G6: ฿200.00 | H6: ฿0.00 | I6: ฿600.00 | P6: =SUM(รายเดือน[[#This Row],[ม.ค.]:[ธ.ค.]]) -> ฿2,100.00
B7: รายรับ | C7: อื่นๆ 1 | D7: ฿2,500.00 | E7: ฿2,500.00 | F7: ฿2,500.00 | G7: ฿2,500.00 | H7: ฿2,500.00 | I7: ฿2,500.00 | P7: =SUM(รายเดือน[[#This Row],[ม.ค.]:[ธ.ค.]]) -> ฿15,000.00
B8: รายรับ | C8: อื่นๆ 2 | D8: ฿0.00 | E8: ฿0.00 | F8: ฿0.00 | G8: ฿0.00 | H8: ฿0.00 | I8: ฿0.00 | P8: =SUM(รายเดือน[[#This Row],[ม.ค.]:[ธ.ค.]]) -> ฿0.00
B9: รายรับ | C9: อื่นๆ 3 | D9: ฿0.00 | E9: ฿0.00 | F9: ฿0.00 | G9: ฿0.00 | H9: ฿0.00 | I9: ฿0.00 | P9: =SUM(รายเดือน[[#This Row],[ม.ค.]:[ธ.ค.]]) -> ฿0.00
B10: รายรับ | C10: อื่นๆ 4 | D10: ฿0.00 | E10: ฿0.00 | F10: ฿0.00 | G10: ฿0.00 | H10: ฿0.00 | I10: ฿0.00 | P10: =SUM(รายเดือน[[#This Row],[ม.ค.]:[ธ.ค.]]) -> ฿0.00
B11: ค่าใช้จ่าย | C11: สหพันธรัฐ/SS/ประกันสุขภาพ | D11: ฿1,250.00 | E11: ฿1,250.00 | F11: ฿1,250.00 | G11: ฿1,250.00 | H11: ฿1,250.00 | I11: ฿1,250.00 | P11: =SUM(รายเดือน[[#This Row],[ม.ค.]:[ธ.ค.]]) -> ฿7,500.00
B12: ค่าใช้จ่าย | C12: ภาษีเงินได้ของรัฐ | D12: ฿208.33 | E12: ฿208.33 | F12: ฿208.33 | G12: ฿208.33 | H12: ฿208.33 | I12: ฿208.33 | P12: =SUM(รายเดือน[[#This Row],[ม.ค.]:[ธ.ค.]]) -> ฿1,250.00
B13: ค่าใช้จ่าย | C13: ภาษีรถยนต์/ค่าธรรมเนียม | D13: ฿16.67 | E13: ฿16.67 | F13: ฿16.67 | G13: ฿16.67 | H13: ฿16.67 | I13: ฿16.67 | P13: =SUM(รายเดือน[[#This Row],[ม.ค.]:[ธ.ค.]]) -> ฿100.00
B14: ค่าใช้จ่าย | C14: ชำระเงินค่ารถยนต์ | D14: ฿333.33 | E14: ฿333.33 | F14: ฿333.33 | G14: ฿333.33 | H14: ฿333.33 | I14: ฿333.33 | P14: =SUM(รายเดือน[[#This Row],[ม.ค.]:[ธ.ค.]]) -> ฿2,000.00
B15: ค่าใช้จ่าย | C15: ค่าจำนอง/ค่าเช่า | D15: ฿1,250.00 | E15: ฿1,250.00 | F15: ฿1,250.00 | G15: ฿1,250.00 | H15: ฿1,250.00 | I15: ฿1,250.00 | P15: =SUM(รายเดือน[[#This Row],[ม.ค.]:[ธ.ค.]]) -> ฿7,500.00
B16: ค่าใช้จ่าย | C16: ค่าประกัน | D16: ฿25.00 | E16: ฿25.00 | F16: ฿25.00 | G16: ฿25.00 | H16: ฿25.00 | I16: ฿25.00 | P16: =SUM(รายเดือน[[#This Row],[ม.ค.]:[ธ.ค.]]) -> ฿150.00
B17: ค่าใช้จ่าย | C17: ค่าไฟฟ้า | D17: ฿100.00 | E17: ฿100.00 | F17: ฿100.00 | G17: ฿100.00 | H17: ฿100.00 | I17: ฿100.00 | P17: =SUM(รายเดือน[[#This Row],[ม.ค.]:[ธ.ค.]]) -> ฿600.00
B18: ค่าใช้จ่าย | C18: ค่าแก๊ส | D18: ฿50.00 | E18: ฿50.00 | F18: ฿50.00 | G18: ฿50.00 | H18: ฿50.00 | I18: ฿50.00 | P18: =SUM(รายเดือน[[#This Row],[ม.ค.]:[ธ.ค.]]) -> ฿300.00
B19: ค่าใช้จ่าย | C19: ค่าน้ำ | D19: ฿50.00 | E19: ฿50.00 | F19: ฿50.00 | G19: ฿50.00 | H19: ฿50.00 | I19: ฿50.00 | P19: =SUM(รายเดือน[[#This Row],[ม.ค.]:[ธ.ค.]]) -> ฿300.00
B20: ค่าใช้จ่าย | C20: ค่าท่อระบายน้ำ | D20: ฿25.00 | E20: ฿25.00 | F20: ฿25.00 | G20: ฿25.00 | H20: ฿25.00 | I20: ฿25.00 | P20: =SUM(รายเดือน[[#This Row],[ม.ค.]:[ธ.ค.]]) -> ฿150.00
B21: ค่าใช้จ่าย | C21: ค่าขยะ | D21: ฿12.50 | E21: ฿12.50 | F21: ฿12.50 | G21: ฿12.50 | H21: ฿12.50 | I21: ฿12.50 | P21: =SUM(รายเดือน[[#This Row],[ม.ค.]:[ธ.ค.]]) -> ฿75.00
B22: ค่าใช้จ่าย | C22: ค่าโทรศัพท์ | D22: ฿50.00 | E22: ฿50.00 | F22: ฿50.00 | G22: ฿50.00 | H22: ฿50.00 | I22: ฿50.00 | P22: =SUM(รายเดือน[[#This Row],[ม.ค.]:[ธ.ค.]]) -> ฿300.00
B23: ค่าใช้จ่าย | C23: อินเทอร์เน็ต | D23: ฿50.00 | E23: ฿50.00 | F23: ฿50.00 | G23: ฿50.00 | H23: ฿50.00 | I23: ฿50.00 | P23: =SUM(รายเดือน[[#This Row],[ม.ค.]:[ธ.ค.]]) -> ฿300.00
B24: ค่าใช้จ่าย | C24: เงินช่วยเหลือผู้ทุพพลภาพ | D24: ฿125.00 | E24: ฿125.00 | F24: ฿125.00 | G24: ฿125.00 | H24: ฿125.00 | I24: ฿125.00 | P24: =SUM(รายเดือน[[#This Row],[ม.ค.]:[ธ.ค.]]) -> ฿750.00
B25: ค่าใช้จ่าย | C25: อาหาร | D25: ฿400.00 | E25: ฿500.00 | F25: ฿450.00 | G25: ฿400.00 | H25: ฿450.00 | I25: ฿425.00 | P25: =SUM(รายเดือน[[#This Row],[ม.ค.]:[ธ.ค.]]) -> ฿2,625.00
B26: ค่าใช้จ่าย | C26: ค่าเสื้อผ้า | D26: ฿50.00 | E26: ฿75.00 | F26: ฿100.00 | G26: ฿75.00 | H26: ฿125.00 | I26: ฿75.00 | P26: =SUM(รายเดือน[[#This Row],[ม.ค.]:[ธ.ค.]]) -> ฿500.00
B27: ค่าใช้จ่าย | C27: ค่ารักษาพยาบาล/ค่าทำฟัน/Rx | D27: ฿50.00 | E27: ฿10.00 | F27: ฿25.00 | G27: ฿25.00 | H27: ฿20.00 | I27: ฿70.00 | P27: =SUM(รายเดือน[[#This Row],[ม.ค.]:[ธ.ค.]]) -> ฿200.00
B28: ค่าใช้จ่าย | C28: ค่าโดยสารรถประจำทาง | D28: ฿30.00 | E28: ฿30.00 | F28: ฿30.00 | G28: ฿20.00 | H28: ฿30.00 | I28: ฿30.00 | P28: =SUM(รายเดือน[[#This Row],[ม.ค.]:[ธ.ค.]]) -> ฿170.00
B29: ค่าใช้จ่าย | C29: อื่นๆ 2 | D29: ฿0.00 | E29: ฿0.00 | F29: ฿0.00 | G29: ฿0.00 | H29: ฿0.00 | I29: ฿0.00 | P29: =SUM(รายเดือน[[#This Row],[ม.ค.]:[ธ.ค.]]) -> ฿0.00
B30: ค่าใช้จ่าย | C30: อื่นๆ 3 | D30: ฿0.00 | E30: ฿0.00 | F30: ฿0.00 | G30: ฿0.00 | H30: ฿0.00 | I30: ฿0.00 | P30: =SUM(รายเดือน[[#This Row],[ม.ค.]:[ธ.ค.]]) -> ฿0.00
B31: ค่าใช้จ่าย | C31: อื่นๆ 4 | D31: ฿0.00 | E31: ฿0.00 | F31: ฿0.00 | G31: ฿0.00 | H31: ฿0.00 | I31: ฿0.00 | P31: =SUM(รายเดือน[[#This Row],[ม.ค.]:[ธ.ค.]]) -> ฿0.00
B32: รายจ่ายตามดุลยพินิจ | C32: ค่าอาหาร | D32: ฿50.00 | E32: ฿150.00 | F32: ฿100.00 | G32: ฿50.00 | H32: ฿150.00 | I32: ฿100.00 | P32: =SUM(รายเดือน[[#This Row],[ม.ค.]:[ธ.ค.]]) -> ฿600.00
B33: รายจ่ายตามดุลยพินิจ | C33: ของขวัญ | D33: ฿25.00 | E33: ฿75.00 | F33: ฿50.00 | G33: ฿25.00 | H33: ฿75.00 | I33: ฿50.00 | P33: =SUM(รายเดือน[[#This Row],[ม.ค.]:[ธ.ค.]]) -> ฿300.00
B34: รายจ่ายตามดุลยพินิจ | C34: การท่องเที่ยว | D34: ฿0.00 | E34: ฿0.00 | F34: ฿1,000.00 | G34: ฿0.00 | H34: ฿0.00 | I34: ฿1,000.00 | P34: =SUM(รายเดือน[[#This Row],[ม.ค.]:[ธ.ค.]]) -> ฿2,000.00
B35: รายจ่ายตามดุลยพินิจ | C35: ความบันเทิง | D35: ฿50.00 | E35: ฿150.00 | F35: ฿100.00 | G35: ฿50.00 | H35: ฿150.00 | I35: ฿100.00 | P35: =SUM(รายเดือน[[#This Row],[ม.ค.]:[ธ.ค.]]) -> ฿600.00
B36: รายจ่ายตามดุลยพินิจ | C36: ค่าของใช้ส่วนตัว | D36: ฿15.00 | E36: ฿25.00 | F36: ฿35.00 | G36: ฿15.00 | H36: ฿25.00 | I36: ฿35.00 | P36: =SUM(รายเดือน[[#This Row],[ม.ค.]:[ธ.ค.]]) -> ฿150.00
B37: รายจ่ายตามดุลยพินิจ | C37: ซื้อของ | D37: ฿100.00 | E37: ฿200.00 | F37: ฿150.00 | G37: ฿175.00 | H37: ฿150.00 | I37: ฿175.00 | P37: =SUM(รายเดือน[[#This Row],[ม.ค.]:[ธ.ค.]]) -> ฿950.00
B38: รายจ่ายตามดุลยพินิจ | C38: การกุศล | D38: ฿50.00 | E38: ฿50.00 | F38: ฿50.00 | G38: ฿50.00 | H38: ฿50.00 | I38: ฿50.00 | P38: =SUM(รายเดือน[[#This Row],[ม.ค.]:[ธ.ค.]]) -> ฿300.00
B39: รายจ่ายตามดุลยพินิจ | C39: ค่าสโมสร/ค่าสมาชิก | D39: ฿25.00 | E39: ฿25.00 | F39: ฿25.00 | G39: ฿25.00 | H39: ฿25.00 | I39: ฿25.00 | P39: =SUM(รายเดือน[[#This Row],[ม.ค.]:[ธ.ค.]]) -> ฿150.00
B40: รายจ่ายตามดุลยพินิจ | C40: ค่าปรับปรุงบ้าน | D40: ฿400.00 | E40: ฿400.00 | F40: ฿400.00 | G40: ฿400.00 | H40: ฿400.00 | I40: ฿400.00 | P40: =SUM(รายเดือน[[#This Row],[ม.ค.]:[ธ.ค.]]) -> ฿2,400.00
B41: รายจ่ายตามดุลยพินิจ | C41: อื่นๆ 1 | D41: ฿0.00 | E41: ฿0.00 | F41: ฿0.00 | G41: ฿0.00 | H41: ฿0.00 | I41: ฿0.00 | P41: =SUM(รายเดือน[[#This Row],[ม.ค.]:[ธ.ค.]]) -> ฿0.00
B42: รายจ่ายตามดุลยพินิจ | C42: อื่นๆ 2 | D42: ฿0.00 | E42: ฿0.00 | F42: ฿0.00 | G42: ฿0.00 | H42: ฿0.00 | I42: ฿0.00 | P42: =SUM(รายเดือน[[#This Row],[ม.ค.]:[ธ.ค.]]) -> ฿0.00
B43: เงินออม | C43: สำรองเงินสด | D43: ฿416.67 | E43: ฿416.67 | F43: ฿416.67 | G43: ฿416.67 | H43: ฿416.67 | I43: ฿416.67 | P43: =SUM(รายเดือน[[#This Row],[ม.ค.]:[ธ.ค.]]) -> ฿2,500.00
B44: เงินออม | C44: 401(k)/อื่นๆ | D44: ฿1,000.00 | E44: ฿1,000.00 | F44: ฿1,000.00 | G44: ฿1,000.00 | H44: ฿1,000.00 | I44: ฿1,000.00 | P44: =SUM(รายเดือน[[#This Row],[ม.ค.]:[ธ.ค.]]) -> ฿6,000.00
B45: เงินออม | C45: บัญชีออมทรัพย์ | D45: ฿500.00 | E45: ฿500.00 | F45: ฿500.00 | G45: ฿500.00 | H45: ฿500.00 | I45: ฿500.00 | P45: =SUM(รายเดือน[[#This Row],[ม.ค.]:[ธ.ค.]]) -> ฿3,000.00
B46: เงินออม | C46: อื่นๆ 1 | D46: ฿0.00 | E46: ฿0.00 | F46: ฿0.00 | G46: ฿0.00 | H46: ฿0.00 | I46: ฿0.00 | P46: =SUM(รายเดือน[[#This Row],[ม.ค.]:[ธ.ค.]]) -> ฿0.00
B47: เงินออม | C47: อื่นๆ 2 | D47: ฿0.00 | E47: ฿0.00 | F47: ฿0.00 | G47: ฿0.00 | H47: ฿0.00 | I47: ฿0.00 | P47: =SUM(รายเดือน[[#This Row],[ม.ค.]:[ธ.ค.]]) -> ฿0.00
B48: ผลรวม | D48: =SUMIF(รายเดือน[ประเภท],"รายรับ",รายเดือน[ม.ค.])-SUMIF(รายเดือน[ประเภท],"<>รายรับ",รายเดือน[ม.ค.]) -> ฿3,692.50 | E48: =SUMIF(รายเดือน[ประเภท],"รายรับ",รายเดือน[ก.พ.])-SUMIF(รายเดือน[ประเภท],"<>รายรับ",รายเดือน[ก.พ.]) -> ฿3,247.50 | F48: =SUMIF(รายเดือน[ประเภท],"รายรับ",รายเดือน[มี.ค.])-SUMIF(รายเดือน[ประเภท],"<>รายรับ",รายเดือน[มี.ค.]) -> ฿2,522.50 | G48: =SUMIF(รายเดือน[ประเภท],"รายรับ",รายเดือน[เม.ย.])-SUMIF(รายเดือน[ประเภท],"<>รายรับ",รายเดือน[เม.ย.]) -> ฿3,427.50 | H48: =SUMIF(รายเดือน[ประเภท],"รายรับ",รายเดือน[พ.ค.])-SUMIF(รายเดือน[ประเภท],"<>รายรับ",รายเดือน[พ.ค.]) -> ฿2,887.50 | I48: =SUMIF(รายเดือน[ประเภท],"รายรับ",รายเดือน[มิ.ย.])-SUMIF(รายเดือน[ประเภท],"<>รายรับ",รายเดือน[มิ.ย.]) -> ฿2,602.50 | J48: =SUMIF(รายเดือน[ประเภท],"รายรับ",รายเดือน[ก.ค.])-SUMIF(รายเดือน[ประเภท],"<>รายรับ",รายเดือน[ก.ค.]) -> ฿0.00 | K48: =SUMIF(รายเดือน[ประเภท],"รายรับ",รายเดือน[ส.ค.])-SUMIF(รายเดือน[ประเภท],"<>รายรับ",รายเดือน[ส.ค.]) -> ฿0.00 | L48: =SUMIF(รายเดือน[ประเภท],"รายรับ",รายเดือน[ก.ย.])-SUMIF(รายเดือน[ประเภท],"<>รายรับ",รายเดือน[ก.ย.]) -> ฿0.00 | M48: =SUMIF(รายเดือน[ประเภท],"รายรับ",รายเดือน[ต.ค.])-SUMIF(รายเดือน[ประเภท],"<>รายรับ",รายเดือน[ต.ค.]) -> ฿0.00 | N48: =SUMIF(รายเดือน[ประเภท],"รายรับ",รายเดือน[พ.ย.])-SUMIF(รายเดือน[ประเภท],"<>รายรับ",รายเดือน[พ.ย.]) -> ฿0.00 | O48: =SUMIF(รายเดือน[ประเภท],"รายรับ",รายเดือน[ธ.ค.])-SUMIF(รายเดือน[ประเภท],"<>รายรับ",รายเดือน[ธ.ค.]) -> ฿0.00 | P48: =SUMIF(รายเดือน[ประเภท],"รายรับ",รายเดือน[ผลรวม])-SUMIF(รายเดือน[ประเภท],"<>รายรับ",รายเดือน[ผลรวม]) -> ฿18,380.00

Sheet กระแสเงินสดรายปี
B1: กระแสเงินสดส่วนบุคคล
C2: กระแสเงินสดจนถึงปัจจุบัน: | D2: =AnnualCashFlowToDate -> ฿42,250.00 | G2: นี่คือการประมาณรายปี ใช้เวิร์กชีตนี้ ถ้าคุณต้องการดูจำนวนรายปีพร้อมกับมูลค่ารายเดือนโดยประมาณ ใช้เวิร์กชีตรายได้ รายจ่าย รายจ่ายตามดุลยพินิจ และการออมเพื่อใส่รายการ
B4: สรุปรายได้ | F4: สรุปรายจ่าย | J4: สรุปรายจ่ายตามดุลยพินิจ | N4: สรุปเงินออม
B5: ผลรวมรายปี: | C5: =รายรับ!C11 -> ฿125,000.00 | F5: ผลรวมรายปี: | G5: =ค่าใช้จ่าย[[#Totals],[รายปี ]] -> ฿46,500.00 | J5: ผลรวมรายปี: | K5: =รายจ่ายตามดุลยพินิจ[[#Totals],[รายปี ]] -> ฿13,250.00 | N5: ผลรวมรายปี: | O5: =เงินออม[[#Totals],[รายปี ]] -> ฿23,000.00
B8: ผลรวมรายเดือน: | C8: =รายรับ!D11 -> ฿10,416.67 | F8: ผลรวมรายเดือน: | G8: =ค่าใช้จ่าย[[#Totals],[รายเดือน ]] -> ฿3,875.00 | J8: ผลรวมรายเดือน: | K8: =รายจ่ายตามดุลยพินิจ[[#Totals],[รายเดือน ]] -> ฿1,104.17 | N8: ผลรวมรายเดือน: | O8: =เงินออม!D10 -> ฿1,916.67
R10: Row Labels | S10: รายได้รายปี | U10: Row Labels | V10: Sum of รายปี | X10: Row Labels | Y10: Sum of รายปี | AA10: Row Labels | AB10: Sum of รายปี
R11: อื่นๆ 4 | S11: ฿0 | U11: อื่นๆ 1 | V11: ฿0 | X11: อื่นๆ 1 | Y11: ฿0 | AA11: อื่นๆ 2 | AB11: ฿0
R12: อื่นๆ 3 | S12: ฿0 | U12: อื่นๆ 2 | V12: ฿0 | X12: อื่นๆ 2 | Y12: ฿0 | AA12: อื่นๆ 1 | AB12: ฿0
R13: อื่นๆ 2 | S13: ฿0 | U13: ค่าขยะ | V13: ฿150 | X13: ค่าของใช้ส่วนตัว | Y13: ฿300 | AA13: สำรองเงินสด | AB13: ฿5,000
R14: ค่าคอมมิชชัน/โบนัส | S14: ฿5,000 | U14: ภาษีรถยนต์/ค่าธรรมเนียม | V14: ฿200 | X14: ค่าสโมสร/ค่าสมาชิก | Y14: ฿300 | AA14: เงินออม/ลงทุน | AB14: ฿6,000
R15: อื่นๆ 1 | S15: ฿30,000 | U15: ค่าประกัน | V15: ฿250 | X15: ของขวัญ | Y15: ฿600 | AA15: 401(k)/Etc | AB15: ฿12,000
R16: เงินเดือน | S16: ฿90,000 | U16: ค่ารักษาพยาบาล/ค่าทำฟัน/Rx | V16: ฿600 | X16: การกุศล | Y16: ฿600 | AA16: Grand Total | AB16: ฿23,000
R17: Grand Total | S17: ฿125,000 | U17: ค่าน้ำ/ค่าท่อระบายน้ำ | V17: ฿600 | X17: ความบันเทิง | Y17: ฿1,200
U18: ค่าแก๊ส | V18: ฿600 | X18: ค่าอาหาร | Y18: ฿1,200
U19: ค่าโทรศัพท์ | V19: ฿600 | X19: ซื้อของ | Y19: ฿2,000
U20: อินเทอร์เน็ต | V20: ฿600 | X20: การท่องเที่ยว | Y20: ฿2,250
U21: ค่าเสื้อผ้า | V21: ฿1,200 | X21: ค่าปรับปรุงบ้าน | Y21: ฿4,800
U22: ค่าไฟฟ้า | V22: ฿1,200 | X22: Grand Total | Y22: ฿13,250
U23: เงินช่วยเหลือผู้ทุพพลภาพ | V23: ฿1,500
U24: ภาษีเงินได้ของรัฐ | V24: ฿2,500
U25: ชำระเงินค่ารถยนต์ | V25: ฿4,000
U26: อาหาร | V26: ฿5,000
U27: สหพันธรัฐ/SS/ประกันสุขภาพ | V27: ฿12,500
U28: ค่าจำนอง/ค่าเช่า | V28: ฿15,000
U29: Grand Total | V29: ฿46,500

Sheet รายรับ
B1: กระแสเงินสดส่วนบุคคล | H1: รายรับ!A1
C2: กระแสเงินสดจนถึงปัจจุบัน: | D2: =AnnualCashFlowToDate -> ฿42,250.00 | F2: นี่คือการประมาณรายปี ใช้เวิร์กชีตนี้ ถ้าคุณต้องการดูจำนวนรายปีพร้อมกับมูลค่ารายเดือนโดยประมาณ ถ้าคุณต้องการเพิ่มรายการประจำวันลงในตาราง ให้ประมาณจำนวน/มูลค่ารายปีและป้อนค่าในคอลัมน์รายปี
B4: รายได้ | C4: รายปี | D4: รายเดือน
B5: เงินเดือน | C5: ฿90,000.00 | D5: =รายได้[[#This Row],[รายปี ]]/12 -> ฿7,500.00
B6: ค่าคอมมิชชัน/โบนัส | C6: ฿5,000.00 | D6: =รายได้[[#This Row],[รายปี ]]/12 -> ฿416.67
B7: อื่นๆ 1 | C7: ฿30,000.00 | D7: =รายได้[[#This Row],[รายปี ]]/12 -> ฿2,500.00
B8: อื่นๆ 2 | C8: ฿0.00 | D8: =รายได้[[#This Row],[รายปี ]]/12 -> ฿0.00
B9: อื่นๆ 3 | C9: ฿0.00 | D9: =รายได้[[#This Row],[รายปี ]]/12 -> ฿0.00
B10: อื่นๆ 4 | C10: ฿0.00 | D10: =รายได้[[#This Row],[รายปี ]]/12 -> ฿0.00
B11: ผลรวม | C11: =SUBTOTAL(109,รายได้[[รายปี ]]) -> ฿125,000.00 | D11: =SUBTOTAL(109,รายได้[[รายเดือน ]]) -> ฿10,416.67

Sheet ค่าใช้จ่าย
B1: กระแสเงินสดส่วนบุคคล | G1: รายรับ!A1
C2: กระแสเงินสดจนถึงปัจจุบัน: | D2: =AnnualCashFlowToDate -> ฿42,250.00 | F2: นี่คือการประมาณรายปี ใช้เวิร์กชีตนี้ ถ้าคุณต้องการดูจำนวนรายปีพร้อมกับมูลค่ารายเดือนโดยประมาณ ถ้าคุณต้องการเพิ่มรายการประจำวันลงในตาราง ให้ประมาณจำนวน/มูลค่ารายปีและป้อนค่าในคอลัมน์รายปี
B4: ค่าใช้จ่าย | C4: รายปี | D4: รายเดือน
B5: สหพันธรัฐ/SS/ประกันสุขภาพ | C5: ฿12,500.00 | D5: =ค่าใช้จ่าย[[#This Row],[รายปี ]]/12 -> ฿1,041.67
B6: ภาษีเงินได้ของรัฐ | C6: ฿2,500.00 | D6: =ค่าใช้จ่าย[[#This Row],[รายปี ]]/12 -> ฿208.33
B7: ภาษีรถยนต์/ค่าธรรมเนียม | C7: ฿200.00 | D7: =ค่าใช้จ่าย[[#This Row],[รายปี ]]/12 -> ฿16.67
B8: ชำระเงินค่ารถยนต์ | C8: ฿4,000.00 | D8: =ค่าใช้จ่าย[[#This Row],[รายปี ]]/12 -> ฿333.33
B9: ค่าจำนอง/ค่าเช่า | C9: ฿15,000.00 | D9: =ค่าใช้จ่าย[[#This Row],[รายปี ]]/12 -> ฿1,250.00
B10: ค่าประกัน | C10: ฿250.00 | D10: =ค่าใช้จ่าย[[#This Row],[รายปี ]]/12 -> ฿20.83
B11: ค่าไฟฟ้า | C11: ฿1,200.00 | D11: =ค่าใช้จ่าย[[#This Row],[รายปี ]]/12 -> ฿100.00
B12: ค่าแก๊ส | C12: ฿600.00 | D12: =ค่าใช้จ่าย[[#This Row],[รายปี ]]/12 -> ฿50.00
B13: ค่าน้ำ/ค่าท่อระบายน้ำ | C13: ฿600.00 | D13: =ค่าใช้จ่าย[[#This Row],[รายปี ]]/12 -> ฿50.00
B14: ค่าขยะ | C14: ฿150.00 | D14: =ค่าใช้จ่าย[[#This Row],[รายปี ]]/12 -> ฿12.50
B15: ค่าโทรศัพท์ | C15: ฿600.00 | D15: =ค่าใช้จ่าย[[#This Row],[รายปี ]]/12 -> ฿50.00
B16: อินเทอร์เน็ต | C16: ฿600.00 | D16: =ค่าใช้จ่าย[[#This Row],[รายปี ]]/12 -> ฿50.00
B17: เงินช่วยเหลือผู้ทุพพลภาพ | C17: ฿1,500.00 | D17: =ค่าใช้จ่าย[[#This Row],[รายปี ]]/12 -> ฿125.00
B18: อาหาร | C18: ฿5,000.00 | D18: =ค่าใช้จ่าย[[#This Row],[รายปี ]]/12 -> ฿416.67
B19: ค่าเสื้อผ้า | C19: ฿1,200.00 | D19: =ค่าใช้จ่าย[[#This Row],[รายปี ]]/12 -> ฿100.00
B20: ค่ารักษาพยาบาล/ค่าทำฟัน/Rx | C20: ฿600.00 | D20: =ค่าใช้จ่าย[[#This Row],[รายปี ]]/12 -> ฿50.00
B21: อื่นๆ 1 | C21: ฿0.00 | D21: =ค่าใช้จ่าย[[#This Row],[รายปี ]]/12 -> ฿0.00
B22: อื่นๆ 2 | C22: ฿0.00 | D22: =ค่าใช้จ่าย[[#This Row],[รายปี ]]/12 -> ฿0.00
B23: ผลรวม | C23: =SUBTOTAL(109,ค่าใช้จ่าย[[รายปี ]]) -> ฿46,500.00 | D23: =SUBTOTAL(109,ค่าใช้จ่าย[[รายเดือน ]]) -> ฿3,875.00

Sheet รายจ่ายตามดุลยพินิจ
B1: กระแสเงินสดส่วนบุคคล
C2: กระแสเงินสดจนถึงปัจจุบัน: | D2: =AnnualCashFlowToDate -> ฿42,250.00 | F2: นี่คือการประมาณรายปี ใช้เวิร์กชีตนี้ ถ้าคุณต้องการดูจำนวนรายปีพร้อมกับมูลค่ารายเดือนโดยประมาณ ถ้าคุณต้องการเพิ่มรายการประจำวันลงในตาราง ให้ประมาณจำนวน/มูลค่ารายปีและป้อนค่าในคอลัมน์รายปี
B4: ค่าใช้จ่าย | C4: รายปี | D4: รายเดือน
B5: ค่าอาหาร | C5: ฿1,200.00 | D5: =รายจ่ายตามดุลยพินิจ[[#This Row],[รายปี ]]/12 -> ฿100.00
B6: ของขวัญ | C6: ฿600.00 | D6: =รายจ่ายตามดุลยพินิจ[[#This Row],[รายปี ]]/12 -> ฿50.00
B7: การท่องเที่ยว | C7: ฿2,250.00 | D7: =รายจ่ายตามดุลยพินิจ[[#This Row],[รายปี ]]/12 -> ฿187.50
B8: ความบันเทิง | C8: ฿1,200.00 | D8: =รายจ่ายตามดุลยพินิจ[[#This Row],[รายปี ]]/12 -> ฿100.00
B9: ค่าของใช้ส่วนตัว | C9: ฿300.00 | D9: =รายจ่ายตามดุลยพินิจ[[#This Row],[รายปี ]]/12 -> ฿25.00
B10: ซื้อของ | C10: ฿2,000.00 | D10: =รายจ่ายตามดุลยพินิจ[[#This Row],[รายปี ]]/12 -> ฿166.67
B11: การกุศล | C11: ฿600.00 | D11: =รายจ่ายตามดุลยพินิจ[[#This Row],[รายปี ]]/12 -> ฿50.00
B12: ค่าสโมสร/ค่าสมาชิก | C12: ฿300.00 | D12: =รายจ่ายตามดุลยพินิจ[[#This Row],[รายปี ]]/12 -> ฿25.00
B13: ค่าปรับปรุงบ้าน | C13: ฿4,800.00 | D13: =รายจ่ายตามดุลยพินิจ[[#This Row],[รายปี ]]/12 -> ฿400.00
B14: อื่นๆ 1 | C14: ฿0.00 | D14: =รายจ่ายตามดุลยพินิจ[[#This Row],[รายปี ]]/12 -> ฿0.00
B15: อื่นๆ 2 | C15: ฿0.00 | D15: =รายจ่ายตามดุลยพินิจ[[#This Row],[รายปี ]]/12 -> ฿0.00
B16: ผลรวม | C16: =SUBTOTAL(109,รายจ่ายตามดุลยพินิจ[[รายปี ]]) -> ฿13,250.00 | D16: =SUBTOTAL(109,รายจ่ายตามดุลยพินิจ[[รายเดือน ]]) -> ฿1,104.17

Sheet เงินออม
B1: กระแสเงินสดส่วนบุคคล
C2: กระแสเงินสดจนถึงปัจจุบัน: | D2: =AnnualCashFlowToDate -> ฿42,250.00 | F2: นี่คือการประมาณรายปี ใช้เวิร์กชีตนี้ ถ้าคุณต้องการดูจำนวนรายปีพร้อมกับมูลค่ารายเดือนโดยประมาณ ถ้าคุณต้องการเพิ่มรายการประจำวันลงในตาราง ให้ประมาณจำนวน/มูลค่ารายปีและป้อนค่าในคอลัมน์รายปี
B4: เงินออม | C4: รายปี | D4: รายเดือน
B5: สำรองเงินสด | C5: ฿5,000.00 | D5: =เงินออม[[#This Row],[รายปี ]]/12 -> ฿416.67
B6: 401(k)/Etc | C6: ฿12,000.00 | D6: =เงินออม[[#This Row],[รายปี ]]/12 -> ฿1,000.00
B7: เงินออม/ลงทุน | C7: ฿6,000.00 | D7: =เงินออม[[#This Row],[รายปี ]]/12 -> ฿500.00
B8: อื่นๆ 1 | C8: ฿0.00 | D8: =เงินออม[[#This Row],[รายปี ]]/12 -> ฿0.00
B9: อื่นๆ 2 | C9: ฿0.00 | D9: =เงินออม[[#This Row],[รายปี ]]/12 -> ฿0.00
B10: ผลรวม | C10: =SUBTOTAL(109,เงินออม[[รายปี ]]) -> ฿23,000.00 | D10: =SUBTOTAL(109,เงินออม[[รายเดือน ]]) -> ฿1,916.67
